Cogmind - Beta 13 @@@ ROGUE MODE // 2024.03.23 @ 14:56:33 Player: Desymo99 Result: Destroyed by G-50 Soldier with Heavy Laser Performance ------------- Evolutions (4) 2000 Regions Visited (5) 1000 Robots Destroyed (44) 220 Value Destroyed (1479) 1479 Prototype IDs (1) 20 Alien Tech Used (0) 0 Bonus (0) 0 TOTAL SCORE: 4719 Bonus ------- None Cogmind --------- Core Integrity 0/850 Matter 41/300 Energy 100/100 System Corruption 0% Temperature Cool (17) Movement Core (50) Location -6/Factory Parts ------- > --- POWER (1) -------- (None) > --- PROPULSION (5) --- (None) > --- UTILITY (5) ------ Improved Terrain Scan Processor > --- WEAPON (4) ------- (None) > --- INVENTORY (5) ---- Micro Nuclear Core Hardened Light Armor Plating Hardened Medium Armor Plating EM Shotgun Subdweller Shrapnel Launcher Peak State ------------ > --- POWER ------------ Light Nuclear Core > --- PROPULSION ------- Carbon-fiber Leg Carbon-fiber Leg VSS Leg Improved Carbon-fiber Leg Improved Titanium Leg > --- UTILITY ---------- High-capacity Storage Unit Terrain Scanner Improved Terrain Scan Processor Recoil Stabilizer Improved Medium Armor Plating > --- WEAPON ----------- Heavy Assault Rifle Autogun > --- INVENTORY -------- Micro Nuclear Core Micro Nuclear Core Subdweller Monowheel Cryofiber Web Improved Heat Sink Improved Heat Sink Large Storage Unit Target Analyzer Hardened Light Armor Plating Hardened Medium Armor Plating Long-range Tractor Beam EM Shotgun Shock Rifle Gauss Rifle Subdweller Shrapnel Launcher Improved Grenade Launcher Remote Datajack Heavy Mace [Rating: 41] Favorites ----------- Power Ion Engine Engine Ion Engine Power Core Light Nuclear Core Propulsion Carbon-fiber Leg Leg Carbon-fiber Leg Wheel Subdweller Monowheel Flight Unit Improved VTOL Module Utility Hardened Light Armor Plating Device Recoil Stabilizer Storage Large Storage Unit Processor Improved Terrain Scan Processor Protection Hardened Light Armor Plating Weapon Heavy Assault Rifle Energy Gun EM Shotgun Ballistic Gun Heavy Assault Rifle Launcher Subdweller Shrapnel Launcher Impact Weapon Heavy Mace Build | -11 -10 -10 -8 -7 -6 ------- Run | Yrd Mat Sub Mat Fac Fac Slots Evolved 8 | . . . 4 2 2 Power . | . . . . . . Propulsion 3 | . . . 2 1 . Utility 3 | . . . 2 1 . Weapon 2 | . . . . . 2 Parts Attached 86 | 6 25 10 30 14 1 Power 7 | 1 2 2 1 1 . Engine 6 | 1 2 2 1 . . Core 1 | . . . . 1 . Reactor . | . . . . . . Propulsion 28 | 2 6 3 12 4 1 Treads . | . . . . . . Leg 21 | 2 6 1 8 4 . Wheel 3 | . . 2 . . 1 Hover . | . . . . . . Flight 4 | . . . 4 . . Utility 21 | 1 7 1 8 4 . Device 6 | . 1 . 5 . . Storage 5 | 1 3 . . 1 . Processor 1 | . . . 1 . . Hackware . | . . . . . . Protection 9 | . 3 1 2 3 . Artifact . | . . . . . . Weapon 30 | 2 10 4 9 5 . Energy Gun 4 | 1 1 2 . . . Energy Cannon . | . . . . . . Ballistic Gun 21 | 1 9 2 6 3 . Ballistic Cannon . | . . . . . . Launcher 2 | . . . 2 . . Special Weapon . | . . . . . . Impact Weapon 3 | . . . 1 2 . Slashing Weapon . | . . . . . . Piercing Weapon . | . . . . . . Special Melee Weapon . | . . . . . . Unidentified Prototypes 1 | . . . 1 . . Parts Lost 28 | . 3 6 2 7 10 Power 4 | . 1 1 . 1 1 Propulsion 12 | . 2 1 . 4 5 Utility 5 | . . 1 1 1 2 Weapon 7 | . . 3 1 1 2 Highest Loss Streak 10 | . 2 6 1 3 10 To Critical Strikes 1 | . . 1 . . . Average Slot Usage (%) 96 | . 97 99 97 99 66 Engine 9 | . 14 13 9 2 . Core 1 | . . . . 4 5 Leg 27 | . 27 12 23 37 23 Wheel 2 | . . 15 . . . Flight 1 | . . . 12 . . Device 7 | . 2 . 14 14 4 Storage 10 | . 14 14 9 7 5 Processor 2 | . . . 2 7 6 Protection 8 | . 9 14 8 7 5 Energy Gun 1 | . . 10 . . . Ballistic Gun 19 | . 27 17 15 13 11 Naked Turns . | . . . . . . Heaviest Build 63 | 13 34 40 63 63 59 Greatest Support 80 | 20 20 40 60 80 62 Greatest Overweight (x) 13 | 1 4 1 9 . 13 Average Overweight (x) . | . . . . . . Largest Inventory Capacity 20 | 8 15 15 15 20 20 Average Capacity 14 | 6 10 15 15 19 19 Most Carried 20 | 7 15 15 15 20 19 Average Carried 12 | 4 8 14 13 16 18 Final Capacity 20 | 8 15 15 15 20 5 Final Carried 18 | 6 15 15 15 18 5 Class Distribution -------------------- 58% | Mutant 41% | Scavenger-Mutant Dominant Class ---------------- Mutant | -10/Materials Mutant | -10/Subcaves Scavenger-Mutant | -8/Materials Scavenger-Mutant | -7/Factory Scavenger-Mutant | -6/Factory Resources | -11 -10 -10 -8 -7 -6 ----------- Run | Yrd Mat Sub Mat Fac Fac Matter Collected 1638 | 263 410 323 414 228 . Remotely 32 | . . . 32 . . Salvage Created 1813 | 92 521 257 568 375 . Parts 109 | 2 42 11 30 24 . Haulers Intercepted 1 | . 1 . . . . Recyclers Shooed 5 | . 2 . 1 2 . Parts Field Recycled . | . . . . . . Retrieved Matter . | . . . . . . Parts Self-Destructed 5 | . . 5 . . . Prevented . | . . . . . . Kills | -11 -10 -10 -8 -7 -6 ------- Run | Yrd Mat Sub Mat Fac Fac Combat Hostiles Destroyed 39 | . 14 5 14 6 . Melee 1 | . . . . 1 . Guns 34 | . 14 4 11 5 . AOE 3 | . . . 3 . . Classes Destroyed 9 | 1 3 1 2 2 . Worker 1 | . . . . 1 . Hauler 1 | . 1 . . . . Recycler 3 | 1 1 . . 1 . Swarmer 9 | . 6 . 3 . . Grunt 15 | . 8 . 7 . . Sentry 4 | . . . 3 1 . Hunter 1 | . . . 1 . . Programmer 5 | . . . . 5 . Subdweller 5 | . . 5 . . . Best Kill Streak 4 | 1 3 4 3 2 . Combat Bots Only 4 | . 3 4 3 1 . Max Kills in Single Turn 2 | 1 1 2 2 1 . Gunslinging . | . . . . . . Exploded 2 | . . . 2 . . Melee 1 | . . . . 1 . Uniques/NPCs Destroyed . | . . . . . . Combat | -11 -10 -10 -8 -7 -6 -------- Run | Yrd Mat Sub Mat Fac Fac Hostile Shots Fired 466 | . 97 39 85 158 87 Missed 122 | . 19 6 18 62 17 Damage Taken 4941 | . 770 761 977 1024 1409 Core 1294 | . 80 165 99 99 851 Absorbed by Shields . | . . . . . . Core Remaining (%) 67 | 100 . 2 82 85 . Volleys Fired 173 | 5 61 19 57 30 1 Largest 2 | 2 2 2 2 2 2 Hottest 90 | 70 60 90 46 46 46 Shots Fired 320 | 7 122 38 92 59 2 Gun 317 | 7 122 38 89 59 2 Cannon . | . . . . . . Launcher 3 | . . . 3 . . Special . | . . . . . . Kinetic 299 | 5 121 20 92 59 2 Thermal 2 | 2 . . . . . Explosive . | . . . . . . Electromagnetic 19 | . 1 18 . . . Robot Hit Streak 19 | 2 6 19 14 7 . Robot Miss Streak 7 | 1 7 1 3 2 2 Penetration Max . | . . . . . . Secondary Targets . | . . . . . . Shots Hit Robots 230 | 5 72 36 70 47 . Core Hits 80 | 2 27 11 27 13 . Critical Kills . | . . . . . . Critical Parts Destroyed 2 | . 1 . . 1 . Critical Strikes 2 | . 1 . . 1 . Destroy 1 | . 1 . . . . Smash 1 | . . . . 1 . Melee Attacks 13 | . . . . 13 . Impact 13 | . . . . 13 . Slashing . | . . . . . . Piercing . | . . . . . . Sneak Attacks 2 | . . . . 2 . Combat Hostiles . | . . . . . . Follow-up Attacks . | . . . . . . Damage Inflicted 3796 | 47 976 554 1227 992 . Guns 3281 | 47 976 554 1004 700 . Cannons . | . . . . . . Explosions 223 | . . . 223 . . Melee 292 | . . . . 292 . Ramming . | . . . . . . Kinetic 3216 | 34 976 279 1227 700 . Thermal 13 | 13 . . . . . Explosive . | . . . . . . Electromagnetic 275 | . . 275 . . . Impact 292 | . . . . 292 . Slashing . | . . . . . . Piercing . | . . . . . . Highest Corruption 2 | . 2 2 . 2 . Average Corruption 1 | . 2 2 . 1 . Corruption Purged . | . . . . . . Corruption Blocked . | . . . . . . Effects 20 | . 2 10 . 8 . Message Errors 5 | . 1 3 . 1 . Matter Fused 5 | . . 3 . 2 . Heat Flow Errors 2 | . . 2 . . . Energy Discharges 1 | . . . . 1 . Data Loss (minor) 3 | . 1 2 . . . Misfires 1 | . . . . 1 . Alerts 1 | . . . . 1 . Weapon Failures 2 | . . . . 2 . Overload Shots . | . . . . . . Overflow Damage 123 | . . . . 123 . Projectiles . | . . . . . . Explosions . | . . . . . . Melee 123 | . . . . 123 . Knockbacks 2 | . . . . 2 . Impact 2 | . . . . 2 . Kinetic . | . . . . . . Secondary . | . . . . . . Self-Inflicted Damage . | . . . . . . Shots . | . . . . . . Rammed . | . . . . . . Targets Rammed . | . . . . . . Kicked . | . . . . . . Crushed . | . . . . . . Highest Temperature 272 | 30 69 272 93 16 11 Average Temperature 35 | 18 25 91 33 8 6 Received Heat Transfer 1938 | . 264 419 504 132 619 Siege Activations . | . . . . . . Robots Corrupted 1 | . . 1 . . . Combat Hostiles 1 | . . 1 . . . Parts Fried 5 | . . 3 . 2 . Impact Corruptions 6 | . . . . 6 . Robots Melted . | . . . . . . Combat Hostiles . | . . . . . . Parts Melted . | . . . . . . Heat Transferred 37 | 37 . . . . . Parts Sabotaged . | . . . . . . Parts Stolen . | . . . . . . Parts Stripped . | . . . . . . Power Chain Reactions . | . . . . . . Alert | -11 -10 -10 -8 -7 -6 ------- Run | Yrd Mat Sub Mat Fac Fac Peak Influence 358 | 5 190 . 358 201 88 Initial 131 | . 3 . . 131 58 Average 107 | . 95 . 226 82 66 Maximum Alert Level 1 | . . . 1 1 . Low Security (%) 87 | 100 100 . 27 97 100 Level 1 12 | . . . 72 2 . Level 2 . | . . . . . . Level 3 . | . . . . . . Level 4 . | . . . . . . Level 5 . | . . . . . . High Security . | . . . . . . Max Security . | . . . . . . Squads Dispatched 17 | . 4 . 5 5 3 Investigation 1 | . 1 . . . . Extermination 4 | . . . . 3 1 Reinforcement 8 | . 3 . 2 1 2 Assault . | . . . . . . Garrison 4 | . . . 3 1 . Intercept . | . . . . . . Searches Triggered . | . . . . . . Construction Impeded . | . . . . . . Haulers Reinforced . | . . . . . . Active Scanning Responses . | . . . . . . Cargo Convoy Interrupts . | . . . . . . Stealth | -11 -10 -10 -8 -7 -6 --------- Run | Yrd Mat Sub Mat Fac Fac Distress Signals 4 | . 2 . 2 . . Communications Jammed . | . . . . . . Distress Signals . | . . . . . . Times Spotted 84 | . 32 9 16 15 12 Peak Tracking Total 11 | . 3 5 4 3 11 Tactical Retreats 4 | . 3 . 1 . . Traps | -11 -10 -10 -8 -7 -6 ------- Run | Yrd Mat Sub Mat Fac Fac Traps Triggered 5 | . 4 . . . 1 Indirectly . | . . . . . . Trap Hack Attempts . | . . . . . . Triggered . | . . . . . . Disarmed . | . . . . . . Reprogrammed . | . . . . . . Reused . | . . . . . . Traps Extracted . | . . . . . . Installed . | . . . . . . Triggered . | . . . . . . Machines | -11 -10 -10 -8 -7 -6 ---------- Run | Yrd Mat Sub Mat Fac Fac Machines Disabled 1 | . . . 1 . . Max in Single Turn 1 | . . . 1 . . Machines Repaired . | . . . . . . Machines Dismantled . | . . . . . . Machines Sabotaged . | . . . . . . Overloaded Fab Kills . | . . . . . . Hacking | -11 -10 -10 -8 -7 -6 --------- Run | Yrd Mat Sub Mat Fac Fac Machines Accessed 2 | . . 1 . 1 . Terminals 1 | . . . . 1 . Fabricators . | . . . . . . Repair Stations . | . . . . . . Recycling Units . | . . . . . . Scanalyzers . | . . . . . . Garrison Access . | . . . . . . Total Hacks 6 | . . 4 . 2 . Successful 5 | . . 4 . 1 . Failed 1 | . . . . 1 . Catastrophic . | . . . . . . Database Lockouts . | . . . . . . Manual 2 | . . 2 . . . Terminals 2 | . . . . 2 . Fabricators . | . . . . . . Repair Stations . | . . . . . . Recycling Units . | . . . . . . Scanalyzers . | . . . . . . Garrison Access . | . . . . . . Terminal Hacks 5 | . . 4 . 1 . Record 5 | . . 4 . 1 . Fabricator Hacks . | . . . . . . Repair Station Hacks . | . . . . . . Recycling Unit Hacks . | . . . . . . Scanalyzer . | . . . . . . Garrison Access Hacks . | . . . . . . Unauthorized Hacks . | . . . . . . Terminals . | . . . . . . Fabricators . | . . . . . . Repair Stations . | . . . . . . Recycling Units . | . . . . . . Scanalyzers . | . . . . . . Garrison Access . | . . . . . . Data Cores Recovered . | . . . . . . Used . | . . . . . . Hacking Detections 1 | . . . . 1 . Full Trace Events . | . . . . . . Feedback Events . | . . . . . . Feedback Blocked . | . . . . . . Robot Schematics Acquired . | . . . . . . Robots Built . | . . . . . . Authchips . | . . . . . . Time . | . . . . . . Total Robot Build Rating . | . . . . . . Part Schematics Acquired . | . . . . . . Parts Built . | . . . . . . Authchips . | . . . . . . Time . | . . . . . . Total Part Build Rating . | . . . . . . Parts Repaired . | . . . . . . Time . | . . . . . . Parts Recycled . | . . . . . . Recycled Matter . | . . . . . . Retrieved Matter . | . . . . . . Retrieved Components . | . . . . . . Parts Scanalyzed . | . . . . . . Part Schematics Acquired . | . . . . . . Parts Damaged . | . . . . . . Bothacking | -11 -10 -10 -8 -7 -6 ------------ Run | Yrd Mat Sub Mat Fac Fac Used RIF Installer . | . . . . . . Robots Hacked . | . . . . . . Non-combat . | . . . . . . Combat . | . . . . . . Robot Hacks Applied . | . . . . . . Relay Couplers Released . | . . . . . . Fabnet Peak Effective % . | . . . . . . Robots Rewired . | . . . . . . Allies Hacked . | . . . . . . Hacks Repelled . | . . . . . . Allies | -11 -10 -10 -8 -7 -6 -------- Run | Yrd Mat Sub Mat Fac Fac Total Allies . | . . . . . . Largest Group . | . . . . . . Highest-Rated Group . | . . . . . . Highest-Rated Ally . | . . . . . . Total Orders . | . . . . . . Ally Attacks . | . . . . . . Total Damage . | . . . . . . Kills . | . . . . . . Allies Corrupted . | . . . . . . Allies Melted . | . . . . . . Intel | -11 -10 -10 -8 -7 -6 ------- Run | Yrd Mat Sub Mat Fac Fac Robot Analysis Total . | . . . . . . Derelict Logs Recovered 1 | . . 1 . . . Drone Launches . | . . . . . . Drone Recoveries . | . . . . . . Exploration | -11 -10 -10 -8 -7 -6 ------------- Run | Yrd Mat Sub Mat Fac Fac Turns Passed 4021 | 111 1491 531 583 1036 269 Spaces Moved 2205 | 72 659 328 274 667 205 Core 15 | 9 1 . . . 5 Treads . | . . . . . . Legs 1828 | 63 658 91 149 667 200 Wheels 237 | . . 237 . . . Hover . | . . . . . . Flight 125 | . . . 125 . . Fastest Speed 50 | 50 120 110 96 115 50 Average Speed 133 | 113 159 132 114 119 124 Slowest Speed 700 | 120 250 190 695 120 700 Overloaded Moves . | . . . . . . Propulsion Burnouts . | . . . . . . Robots Hopped . | . . . . . . Cave-ins Triggered . | . . . . . . Exploration Rate (%) 28 | 4 95 24 25 17 6 Regions Visited 5 Branch Regions 1 Pre-discovered Areas . | . . . . . . Known Exits Taken 1 | . . 1 . . . Unknown Exits Taken 4 | 1 1 . 1 1 . Scrap Searched . | . . . . . . Spaces Dug 5 | . . . . 5 . Terrain Destroyed 33 | . . . 28 5 . Melee 5 | . . . . 5 . Projectile . | . . . . . . AOE 28 | . . . 28 . . Terrain Rammed . | . . . . . . Walls Destroyed . | . . . . . . Machines Disabled . | . . . . . . Actions | -11 -10 -10 -8 -7 -6 --------- Run | Yrd Mat Sub Mat Fac Fac Total 2960 | 93 985 392 448 826 216 Wait 373 | 3 200 20 53 90 7 Move 2200 | 71 658 327 273 666 205 Hop . | . . . . . . Pick Up 70 | 8 20 10 21 10 1 Fast Attach 8 | 4 4 . . . . Attach 25 | 2 3 6 6 7 1 Detach . | . . . . . . Swap 53 | . 18 4 24 7 . Drop 45 | . 21 6 14 3 1 Fire 173 | 5 61 19 57 30 1 Melee 13 | . . . . 13 . Ram . | . . . . . . Kick . | . . . . . . Crush . | . . . . . . Escape Stasis . | . . . . . . Rewire . | . . . . . . Trap . | . . . . . . Miscellaneous . | . . . . . . Route ------- -11/Scrapyard -10/Materials (discovered 6 exits: [*Mat x3] / [*Min x2] / *Sub) -10/Subcaves (discovered 3 exits: *Mat x2 / Rec) -8/Materials -7/Factory -6/Factory History --------- Turn | Location | Event 21 | -11/Scrapyard | Discovered new exit (range 15) 112 | -11/Scrapyard | Entered Materials 214 | -10/Materials | Discovered new exit (range 16) 303 | -10/Materials | Build established: Mutant 325 | -10/Materials | Discovered new exit (range 8) 553 | -10/Materials | Discovered new exit (range 4) 707 | -10/Materials | Discovered new exit (range 16) 1182 | -10/Materials | Discovered new exit (range 6) 1252 | -10/Materials | Discovered new exit (range 6) 1603 | -10/Materials | Entered Subcaves 1623 | -10/Subcaves | Learned Materials stockpile data 1643 | -10/Subcaves | Shifting Twisted Machinery released Shrapnel Trap 1723 | -10/Subcaves | Shifting Twisted Machinery released Sub. Laser 1743 | -10/Subcaves | Ambushed by swarm of Subdwellers 1749 | -10/Subcaves | Core integrity fell below 50% 1751 | -10/Subcaves | Visited Clippyterm 1772 | -10/Subcaves | Identified exit to Recycling 1772 | -10/Subcaves | Identified exit to Materials 1797 | -10/Subcaves | Lost 4 allies 1825 | -10/Subcaves | Lost 6 parts (1p1n1u3w) 2032 | -10/Subcaves | Core integrity fell below 20% 2134 | -10/Subcaves | Entered Materials 2134 | -8/Materials | Evolved 4 slots: Propulsion x2, Utility x2 2300 | -8/Materials | Garrison activated, responded to threat 2644 | -8/Materials | Discovered new exit (range 12) 2717 | -8/Materials | Entered Factory 2717 | -7/Factory | Evolved 2 slots: Propulsion x1, Utility x1 2872 | -7/Factory | Build established: Scavenger-Mutant 3615 | -7/Factory | Discovered new exit (range 16) 3673 | -7/Factory | Garrison activated, responded to threat 3707 | -7/Factory | Lost 3 parts (2n1w) 3753 | -7/Factory | Entered another Factory area 3753 | -6/Factory | Evolved 2 slots: Weapon x2 4014 | -6/Factory | Core integrity fell below 50% 4020 | -6/Factory | Core integrity fell below 20% 4022 | -6/Factory | Destroyed by G-50 Soldier with Heavy Laser Last Messages --------------- 04006_ Critical hit (Burn: +50). 04006_ K-01 Serf collects debris. 04007_ U-05 Engineer lays Concrete. 04009_ Carbon-fiber Leg destroyed. 04009_ K-01 Serf collects debris. 04009_ VSS Leg destroyed. 04009_ U-05 Engineer lays Concrete. 04010_ Autogun destroyed. 04010_ U-05 Engineer lays Concrete. 04011_ Sub. Monowheel destroyed. 04012_ U-05 Engineer builds a Wall. 04015_ U-05 Engineer lays Concrete. 04016_ U-05 Engineer builds a Wall. 04018_ U-05 Engineer lays Concrete. 04019_ Dropped Hcp. Storage Unit. 04019_ U-05 Engineer lays Concrete. 04020_ U-05 Engineer builds a Wall. 04020_ U-05 Engineer lays Concrete. 04021_ Critical hit (Burn: +37). [Achievement: Just Browsing] Map ----- +----------------------------------------------------+ | ?????????????????????????????????????????????????? | | ?????????????????????????????????????????????????? | | ?????????????????????????????????????????????????? | | ?????????????????????????????????????????????????? | | ?????????????????????????????????????????????????? | | ?????????????????????????????????????????????????? | | ????????????????????????????????????????????###### | | ?????????????????##############?????????????# | | ?????????????????# #?????????????# | | ?????????????????# """" """" #?????????????# | | ?????????????????# """" """" #?????????????# | | ?????????????????# """" """" #?????????????# | | ?????????????????# """" """" #?????????? ??# | | ?????????????????# """" """" ###########+### | | ?????????????????# """" """" # [[ | | ?????????????????# # [! | | ?????????????????# # [ | | ?????????????????# # ! | | ?????????????????# # | | ?????????????????# k # ####### | | ?????######################g # #?????? | | ???? k gu g g #????## | | ???? g !g!%= g """"""" #???=! | | ???? b !*/ """"""" #???! | | ???? // g t ![!!! """"""" #?? | | ???? /! g ]|![* @ """"""" #?? | | ????? ####################k### #? | | ?????????????????????????? ?# """"""" #?" " | | ??????????????????????????" "?# """"""" # " " " | | ??????????????????????????" "?# """"""" # " " " | | ??????????????????????????" " + """"""" / " " " | | ??????????????????????????? " # # " " " | | ??????????????????????????? "?# """"""" # " " T | | ??????????????????????????? "?# """"""" #?" " " | | ??????????????????????????? "?# """"""" #?" " " | | ??????????????????????????? ??# """"""" #?? " " | | ??????????????????????????????# ?? #?? " | | ??????????????????????????????# ?? #??? | | ??????????????????????????????# ?? #??? | | ??????????????????????????????# ?? #???? # | | ???????????????????????????????###???# #?????? | | ?????????????????????????????????????#? ??????? | | ??????????????????????????????????????? ??????? | | ??????????????????????????????????????? ??????? | | ???????????????????????????????????????? ??????? | | ?????????????????????????????????????????????????? | | ?????????????????????????????????????????????????? | | ?????????????????????????????????????????????????? | | ?????????????????????????????????????????????????? | | ?????????????????????????????????????????????????? | +----------------------------------------------------+ Best States ------------- Heat Dissipation 59 Energy Generation 18 Energy Capacity 265 Matter Stores 300 Matter Capacity 300 Sight Range 16 Terrain Scan Range 14 Terrain Scan Density 110 Armor Coverage 950 Evasion (%) 55 Recoil Reduction 4 Item Schematics ----------------- None Robot Schematics ------------------ None Fabricated ------------ Nothing Alien Tech Used ----------------- None Achievements -------------- Just Browsing Challenges ------------ None Game ------ Seed FlyingSurgeField Manual? 0 Play Time 00:53:15 Cumulative 22.9 hours Start 2024.03.23 @ 13:44:07 End 2024.03.23 @ 14:56:33 Sessions 1 Manual Loads 0 Difficulty Rogue Special Mode None Game No. 33 Rogue 33 Adventurer 0 Explorer 0 Win Type - Total 0 Types 0/0/0/0/0/0/0/0/0 Lore% 23 Gallery% 25 Achievement% 23 Wizard Run 0 Options --------- Layout 1 ASCII 0 Keyboard 1 Movement Numpad Keybinds 0 Fullscreen 1 Font 16/SmallcapsGlow Map View 55x38 Zoom Use 1% Tactical HUD 1 Map Filters NONE Filters NONE Steam 1 RUN: 00c527da-cfbe-410a-b3a2-0cdeb82a78d0